[Event "AUT-ch U18-Open 2025"]
[Site "Fuerstenfeld"]
[Date "2025.04.16"]
[Round "6.1"]
[White "Balint, Peter"]
[Black "Gschiel, Alexander"]
[Result "1/2-1/2"]
[Annotator "RC"]
[ECO "B13"]
[WhiteElo "2366"]
[BlackElo "2317"]
[PlyCount "99"]
[EventDate "2025.04.12"]
[EventType "swiss"]
[EventCountry "AUT"]
[SourceTitle "playchess.com"]
[Source "ChessBase"]
[SourceQuality "1"]
[TimeControl "5400+30"]

1. e4 {[%emt 0:00:01]} c6 {[%emt 0:00:12]} 2. Nf3 {[%emt 1:31:29]} d5 {[%emt 0:00:10]} 3. exd5 {[%emt 0:00:00]} cxd5 {[%emt 0:00:07]} 4. d4 {[%emt 0:00:00]} Nf6 {[%emt 0:01:05]} 5. c3 {[%emt 0:00:00]} Nc6 {[%emt 0:00:28]} 6. Ne5 {[%emt 0:00:00]} e6 {[%emt 0:01:04]} 7. Nd2 {[%emt 0:00:00]} Nxe5 {[%emt 0:03:08]} 8. dxe5 {[%emt 0:00:00]} Nd7 {[%emt 0:00:05]} 9. Nf3 {[%emt 0:00:00]} Bc5 {[%emt 0:09:42]} 10. Bd3 {[%emt 0:00:00]} Qc7 {[%emt 0:00:25]} 11. Qe2 {[%emt 0:00:00]} O-O {[%emt 0:02:27]} 12. O-O {[%emt 0:00:00]} f6 {[%emt 0:00:45]} 13. exf6 {[%emt 0:00:00]} Nxf6 {[%emt 0:00:06]} 14. h3 {[%emt 0:00:00]} Bd7 {[%emt 0:07:06]} 15. Be3 {[%emt 0:00:00]} Bd6 {[%emt 0:06:58]} 16. Bd4 {[%emt 0:00:00]} a6 {[%emt 0:04:57]} 17. Rae1 {[%emt 0:00:00]} Ne4 {[%emt 0:07:34]} 18. Bxe4 {[%emt 0:00:00]} dxe4 {[%emt 0:00:06]} 19. Qxe4 {[%emt 0:00:00]} Rf4 {[%emt 0:04:53]} 20. Qe3 {[%emt 0:00:00]} Bb5 {[%emt 0:02:16]} 21. Ne5 {[%emt 0:00:00]} Rf5 {[%emt 0:02:53]} 22. c4 {[%emt 0:00:00]} Bxe5 {[%emt 0:04:48]} 23. cxb5 {[%emt 0:00:00]} Bxd4 {[%emt 0:00:50]} 24. Qxd4 {[%emt 0:00:00]} axb5 {[%emt 0:04:16]} 25. Rxe6 {[%emt 0:00:00]} Qc4 {[%emt 0:02:37]} 26. Qxc4 {[%emt 0:00:00]} bxc4 {[%emt 0:00:04]} 27. Rb6 {[%emt 0:00:00]} Rxa2 {[%emt 0:05:24]} 28. Rxb7 {[%emt 0:00:00]} Rfa5 {[%emt 0:00:28]} 29. Rc7 {[%emt 0:00:00]} Rxb2 {[%emt 0:00:22]} 30. Rxc4 {[%emt 0:00:00]} Rba2 {[%emt 0:01:26]} 31. Rcc1 {[%emt 0:00:00]} Rf5 {[%emt 0:02:23]} 32. g3 {[%emt 0:00:00]} h5 {[%emt 0:00:38]} 33. Kg2 {[%emt 0:00:00]} Kf7 {[%emt 0:01:01]} 34. Rc6 {[%emt 0:00:00]} g6 {[%emt 0:00:55]} 35. g4 {[%emt 0:00:00]} hxg4 {[%emt 0:00:05]} 36. hxg4 {[%emt 0:00:00]} Rf4 {[%emt 0:02:23]} 37. Kg3 {[%emt 0:00:00]} g5 {[%emt 0:00:05]} 38. Rc3 {[%emt 0:00:00]} Raa4 {[%emt 0:01:27]} 39. f3 {[%emt 0:00:00]} Rac4 {[%emt 0:00:04]} 40. Re3 {[%emt 0:00:00]} Rf6 {[%emt 0:01:57]} 41. Ra1 {[%emt 0:00:00]} Rcf4 {[%emt 0:01:40]} 42. Kg2 {[%emt 0:00:00]} Kg6 {[%emt 0:01:15]} 43. Ra5 {[%emt 0:00:00]} Kh6 {[%emt 0:00:39]} 44. Ra8 {[%emt 0:00:00]} Rf8 {[%emt 0:01:36]} 45. Re6+ {[%emt 0:00:00]} R4f6 {[%emt 0:01:01]} 46. Rxf6+ {[%emt 0:00:00]} Rxf6 {[%emt 0:00:04]} 47. Rg8 {[%emt 0:00:00]} Ra6 {[%emt 0:01:26]} 48. Kf2 {[%emt 0:00:00]} Ra2+ {[%emt 0:00:09]} 49. Kg3 {[%emt 0:00:00]} Rb2 {[%emt 0:00:10]} 50. Kh3 {[%emt 0:00:00]} 1/2-1/2

[Event "AUT-ch U18-Open 2025"]
[Site "Fuerstenfeld"]
[Date "2025.04.16"]
[Round "6.2"]
[White "Leitgeb, Julian"]
[Black "Wendl, Philipp"]
[Result "1/2-1/2"]
[Annotator "RC"]
[ECO "C55"]
[WhiteElo "2313"]
[BlackElo "2268"]
[PlyCount "51"]
[EventDate "2025.04.12"]
[EventType "swiss"]
[EventCountry "AUT"]
[SourceTitle "playchess.com"]
[Source "ChessBase"]
[SourceQuality "1"]
[TimeControl "5400+30"]

1. e4 {[%emt 0:00:03]} e5 {[%emt 0:00:07]} 2. Nf3 {[%emt 0:00:07]} Nc6 {[%emt 0:00:05]} 3. Bc4 {[%emt 0:00:42]} Nf6 {[%emt 0:00:25]} 4. d3 {[%emt 0:00:16]} Be7 {[%emt 0:00:06]} 5. Nc3 {[%emt 0:01:33]} d6 {[%emt 0:00:32]} 6. a3 {[%emt 0:00:21]} O-O {[%emt 0:01:12]} 7. h3 {[%emt 0:00:17]} Be6 {[%emt 0:00:38]} 8. Nd5 {[%emt 0:00:31]} Bxd5 {[%emt 0:07:55]} 9. exd5 {[%emt 0:00:14]} Nb8 {[%emt 0:00:08]} 10. O-O {[%emt 0:02:43]} c6 {[%emt 0:06:18]} 11. dxc6 {[%emt 0:00:14]} Nxc6 {[%emt 0:00:24]} 12. b4 {[%emt 0:02:41]} d5 {[%emt 0:04:06]} 13. Ba2 {[%emt 0:04:38]} e4 {[%emt 0:03:00]} 14. Nh2 {[%emt 0:10:37]} a5 {[%emt 0:03:21]} 15. b5 {[%emt 0:05:31]} Nd4 {[%emt 0:01:44]} 16. c4 {[%emt 0:05:57]} dxc4 {[%emt 0:08:55]} 17. Bxc4 {[%emt 0:00:51]} Qb6 {[%emt 0:06:33]} 18. dxe4 {[%emt 0:08:31]} Nxe4 {[%emt 0:02:42]} 19. Be3 {[%emt 0:04:15]} Bc5 {[%emt 0:02:04]} 20. Bd3 {[%emt 0:08:50]} Rfe8 {[%emt 0:02:10]} 21. Re1 {[%emt 0:08:21]} Rad8 {[%emt 0:02:14]} 22. Qb1 {[%emt 0:02:22]} Nc3 {[%emt 0:02:59]} 23. Qb2 {[%emt 0:02:35]} Na4 {[%emt 0:18:21]} 24. Qb1 {[%emt 0:04:08]} Nc3 {[%emt 0:00:06]} 25. Qb2 {[%emt 0:00:06]} Na4 {[%emt 0:01:00]} 26. Qb1 {[%emt 0:00:08]} 1/2-1/2

[Event "AUT-ch U18-Open 2025"]
[Site "Fuerstenfeld"]
[Date "2025.04.16"]
[Round "6.3"]
[White "Gold, Theodor"]
[Black "Gruenwald, Simon"]
[Result "1/2-1/2"]
[Annotator "NA RC"]
[ECO "B15"]
[WhiteElo "2066"]
[BlackElo "2101"]
[PlyCount "43"]
[EventDate "2025.04.12"]
[EventType "swiss"]
[EventCountry "AUT"]
[SourceTitle "playchess.com"]
[Source "ChessBase"]
[SourceQuality "1"]
[TimeControl "5400+30"]

1. e4 {[%emt 0:00:03]} c6 {[%emt 0:01:52]} 2. d4 {[%emt 0:00:34]} d5 {[%emt 0:00:03]} 3. Nc3 {[%emt 0:00:08]} dxe4 {[%emt 0:00:01]} 4. Nxe4 {[%emt 0:00:11]} Nf6 {[%emt 0:00:09]} 5. Nxf6+ {[%emt 0:00:31]} exf6 {[%emt 0:00:02]} 6. c3 {[%emt 0:00:18]} Bd6 {[%emt 0:00:02]} 7. Bd3 {[%emt 0:00:14]} O-O {[%emt 0:00:04]} 8. Qc2 {[%emt 0:00:07]} Re8+ {[%emt 0:00:05]} 9. Ne2 {[%emt 0:00:09]} h5 {[%emt 0:00:02]} 10. O-O {[%emt 0:00:37]} h4 {[%emt 0:00:03]} 11. Nf4 {[%emt 0:00:59]} Nd7 {[%emt 0:13:12]} 12. Qd1 {[%emt 0:00:16]} Nf8 {[%emt 0:05:03]} 13. Qh5 {[%emt 0:00:16]} g6 {[%emt 0:08:18]} 14. Nxg6 {[%emt 0:02:00]} fxg6 {[%emt 0:00:20]} 15. Bxg6 {[%emt 0:00:06]} Nxg6 {[%emt 0:00:05]} 16. Qxg6+ {[%emt 0:00:06]} Kh8 {[%emt 0:00:31]} 17. Bh6 {[%emt 0:29:31]} Bf8 {[%emt 0:15:25]} 18. Bxf8 {[%emt 0:38:14]} Rxf8 {[%emt 0:00:02]} 19. Qh6+ {[%emt 0:00:02]} Kg8 {[%emt 0:00:10]} 20. Qg6+ {[%emt 0:00:09]} Kh8 {[%emt 0:00:01]} 21. Qh6+ {[%emt 0:00:09]} Kg8 {[%emt 0:00:02]} 22. Qg6+ {[%emt 0:00:16]} 1/2-1/2

[Event "AUT-ch U18-Open 2025"]
[Site "Fuerstenfeld"]
[Date "2025.04.16"]
[Round "6.4"]
[White "Loretz, Jonas"]
[Black "Zaytsev, Alexander"]
[Result "1-0"]
[Annotator "RC"]
[ECO "B40"]
[WhiteElo "1869"]
[BlackElo "2178"]
[PlyCount "161"]
[EventDate "2025.04.12"]
[EventType "swiss"]
[EventCountry "AUT"]
[SourceTitle "playchess.com"]
[Source "ChessBase"]
[SourceQuality "1"]
[TimeControl "5400+30"]

1. e4 {[%emt 1:31:00]} c5 {[%emt 0:00:44]} 2. Nf3 {[%emt 0:00:00]} e6 {[%emt 0:00:09]} 3. d4 {[%emt 0:00:00]} cxd4 {[%emt 0:00:12]} 4. Nxd4 {[%emt 0:00:00]} Nf6 {[%emt 0:00:04]} 5. Nc3 {[%emt 0:00:00]} Nc6 {[%emt 0:00:06]} 6. Nxc6 {[%emt 0:00:00]} bxc6 {[%emt 0:00:09]} 7. Bd3 {[%emt 0:00:00]} d5 {[%emt 0:02:05]} 8. O-O {[%emt 0:00:00]} Be7 {[%emt 0:06:38]} 9. b3 {[%emt 0:00:00]} a5 {[%emt 0:08:47]} 10. Qe2 {[%emt 0:00:00]} O-O {[%emt 0:11:24]} 11. Bb2 {[%emt 0:00:00]} Qc7 {[%emt 0:11:32]} 12. Na4 {[%emt 0:00:00]} Nd7 {[%emt 0:16:06]} 13. f4 {[%emt 0:00:00]} Nc5 {[%emt 0:05:08]} 14. Nxc5 {[%emt 0:00:00]} Bxc5+ {[%emt 0:00:03]} 15. Kh1 {[%emt 0:00:00]} Qb6 {[%emt 0:07:56]} 16. Rf3 {[%emt 0:00:00]} e5 {[%emt 0:14:19]} 17. exd5 {[%emt 0:00:00]} Bd4 {[%emt 0:11:31]} 18. c3 {[%emt 0:00:00]} cxd5 {[%emt 0:01:29]} 19. cxd4 {[%emt 0:00:00]} e4 {[%emt 0:00:11]} 20. Bxe4 {[%emt 0:00:00]} dxe4 {[%emt 0:00:59]} 21. Qxe4 {[%emt 0:00:00]} Bb7 {[%emt 0:00:04]} 22. d5 {[%emt 0:00:00]} Rfe8 {[%emt 0:01:21]} 23. Qd3 {[%emt 0:00:00]} Rad8 {[%emt 0:00:31]} 24. Rg3 {[%emt 0:00:00]} f6 {[%emt 0:00:26]} 25. Rh3 {[%emt 0:00:00]} Bxd5 {[%emt 0:00:32]} 26. Qxh7+ {[%emt 0:00:00]} Kf7 {[%emt 0:00:03]} 27. Qh5+ {[%emt 0:00:00]} Kg8 {[%emt 0:00:03]} 28. Qg6 {[%emt 0:00:00]} Qf2 {[%emt 0:01:23]} 29. Bc3 {[%emt 0:00:00]} Be4 {[%emt 0:00:33]} 30. Qg3 {[%emt 0:00:00]} Qc2 {[%emt 0:00:30]} 31. Rg1 {[%emt 0:00:00]} Rd3 {[%emt 0:00:29]} 32. Qg4 {[%emt 0:00:00]} Qxc3 {[%emt 0:00:30]} 33. Qh5 {[%emt 0:00:00]} Qc8 {[%emt 0:00:31]} 34. Rxd3 {[%emt 0:00:00]} Bxd3 {[%emt 0:00:31]} 35. Qd5+ {[%emt 0:00:00]} Qe6 {[%emt 0:00:30]} 36. Qxd3 {[%emt 0:00:00]} Qb6 {[%emt 0:00:30]} 37. Qd5+ {[%emt 0:00:00]} Kf8 {[%emt 0:00:15]} 38. h3 {[%emt 0:00:04]} Qb4 {[%emt 0:00:41]} 39. Rd1 {[%emt 0:01:37]} Re1+ {[%emt 0:00:30]} 40. Rxe1 {[%emt 0:00:26]} Qxe1+ {[%emt 0:00:01]} 41. Kh2 {[%emt 0:00:14]} Qf2 {[%emt 0:00:41]} 42. Qd6+ {[%emt 0:01:00]} Kg8 {[%emt 0:00:42]} 43. a3 {[%emt 0:00:42]} Qe3 {[%emt 0:00:22]} 44. b4 {[%emt 0:00:38]} Qxa3 {[%emt 0:00:48]} 45. Qd8+ {[%emt 0:00:11]} Kh7 {[%emt 0:00:09]} 46. Qxa5 {[%emt 0:01:44]} Qc3 {[%emt 0:00:46]} 47. Qc5 {[%emt 0:00:44]} Qd2 {[%emt 0:00:30]} 48. Qc4 {[%emt 0:00:16]} Qd6 {[%emt 0:00:20]} 49. Qe4+ {[%emt 0:03:56]} Kg8 {[%emt 0:00:31]} 50. h4 {[%emt 0:01:21]} f5 {[%emt 0:01:15]} 51. Qc4+ {[%emt 0:00:56]} Kh7 {[%emt 0:00:00]} 52. b5 {[%emt 0:00:22]} Qb6 {[%emt 0:00:28]} 53. Qe2 {[%emt 0:02:05]} g6 {[%emt 0:00:29]} 54. h5 {[%emt 0:02:20]} Qf6 {[%emt 0:00:32]} 55. hxg6+ {[%emt 0:00:29]} Qxg6 {[%emt 0:00:27]} 56. Qe7+ {[%emt 0:00:25]} Kh8 {[%emt 0:00:06]} 57. Qg5 {[%emt 0:01:36]} Qe6 {[%emt 0:00:27]} 58. Qd8+ {[%emt 0:00:36]} Kg7 {[%emt 0:00:59]} 59. b6 {[%emt 0:01:12]} Qh6+ {[%emt 0:00:30]} 60. Kg3 {[%emt 0:01:02]} Qe6 {[%emt 0:00:20]} 61. Qd4+ {[%emt 0:00:30]} Kg6 {[%emt 0:00:29]} 62. Kh2 {[%emt 0:01:05]} Qe1 {[%emt 0:00:33]} 63. Kh3 {[%emt 0:01:17]} Qh1+ {[%emt 0:00:36]} 64. Kg3 {[%emt 0:00:07]} Qe1+ {[%emt 0:00:19]} 65. Qf2 {[%emt 0:00:22]} Qe4 {[%emt 0:00:44]} 66. Qf3 {[%emt 0:01:36]} Qe1+ {[%emt 0:00:28]} 67. Kh2 {[%emt 0:00:07]} Qh4+ {[%emt 0:00:30]} 68. Qh3 {[%emt 0:00:44]} Qe7 {[%emt 0:01:03]} 69. Qg3+ {[%emt 0:00:30]} Kf7 {[%emt 0:00:00]} 70. Qg5 {[%emt 0:00:16]} Qe4 {[%emt 0:00:16]} 71. Qh6 {[%emt 0:00:34]} Kg8 {[%emt 0:00:42]} 72. Qg6+ {[%emt 0:00:51]} Kh8 {[%emt 0:00:31]} 73. Qf6+ {[%emt 0:00:24]} Kg8 {[%emt 0:00:29]} 74. Qd8+ {[%emt 0:00:08]} Kg7 {[%emt 0:00:16]} 75. Qc7+ {[%emt 0:00:11]} Kh6 {[%emt 0:00:11]} 76. b7 {[%emt 0:00:29]} Qe1 {[%emt 0:00:14]} 77. Qd8 {[%emt 0:00:14]} Qe2 {[%emt 0:00:40]} 78. Qh4+ {[%emt 0:00:23]} Kg6 {[%emt 0:01:09]} 79. Qg5+ {[%emt 0:00:06]} Kh7 {[%emt 0:00:17]} 80. Qxf5+ {[%emt 0:00:06]} Kg7 {[%emt 0:00:16]} 81. Qe5+ {[%emt 0:06:04]} 1-0

[Event "AUT-ch U18-Open 2025"]
[Site "Fuerstenfeld"]
[Date "2025.04.16"]
[Round "6.5"]
[White "Jetzl, Julian"]
[Black "Maier, Tobias"]
[Result "1-0"]
[Annotator "NA RC"]
[ECO "A48"]
[WhiteElo "2146"]
[BlackElo "1915"]
[PlyCount "71"]
[EventDate "2025.04.12"]
[EventType "swiss"]
[EventCountry "AUT"]
[SourceTitle "playchess.com"]
[Source "ChessBase"]
[SourceQuality "1"]
[TimeControl "5400+30"]

1. d4 {[%emt 0:00:05]} Nf6 {[%emt 1:31:00]} 2. Bf4 {[%emt 0:00:20]} g6 {[%emt 0:00:00]} 3. e3 {[%emt 0:00:29]} Bg7 {[%emt 0:00:00]} 4. Nf3 {[%emt 0:00:13]} d6 {[%emt 0:00:00]} 5. h3 {[%emt 0:00:11]} O-O {[%emt 0:00:00]} 6. Be2 {[%emt 0:00:52]} c5 {[%emt 0:00:00]} 7. O-O {[%emt 0:00:50]} cxd4 {[%emt 0:00:00]} 8. exd4 {[%emt 0:00:14]} Nc6 {[%emt 0:00:00]} 9. c3 {[%emt 0:01:51]} Nd5 {[%emt 0:00:00]} 10. Bg3 {[%emt 0:02:32]} e5 {[%emt 0:00:00]} 11. Qb3 {[%emt 0:10:08]} Nb6 {[%emt 0:00:00]} 12. dxe5 {[%emt 0:03:45]} Be6 {[%emt 0:00:00]} 13. Qa3 {[%emt 0:03:09]} dxe5 {[%emt 0:00:00]} 14. Rd1 {[%emt 0:04:49]} Qc8 {[%emt 0:00:00]} 15. Nbd2 {[%emt 0:06:19]} Re8 {[%emt 0:00:00]} 16. Qc5 {[%emt 0:07:01]} f5 {[%emt 0:00:00]} 17. Nc4 {[%emt 0:11:56]} Nxc4 {[%emt 0:00:00]} 18. Bxc4 {[%emt 0:00:09]} Bxc4 {[%emt 0:00:00]} 19. Qxc4+ {[%emt 0:00:15]} Kh8 {[%emt 0:00:00]} 20. Ng5 {[%emt 0:03:53]} Nd8 {[%emt 0:00:00]} 21. Qh4 {[%emt 0:01:13]} h6 {[%emt 0:00:00]} 22. Bxe5 {[%emt 0:02:12]} Kg8 {[%emt 0:03:38]} 23. Bxg7 {[%emt 0:01:41]} Kxg7 {[%emt 0:00:12]} 24. Qd4+ {[%emt 0:01:03]} Kg8 {[%emt 0:00:38]} 25. Nf3 {[%emt 0:04:16]} Nf7 {[%emt 0:00:22]} 26. Re1 {[%emt 0:05:48]} Rd8 {[%emt 0:02:43]} 27. Qb4 {[%emt 0:01:34]} b6 {[%emt 0:03:45]} 28. Nd4 {[%emt 0:07:46]} Rd6 {[%emt 0:01:39]} 29. Re7 {[%emt 0:01:11]} Rd7 {[%emt 0:00:32]} 30. Re2 {[%emt 0:03:05]} Qa6 {[%emt 0:00:29]} 31. Re6 {[%emt 0:02:17]} Kg7 {[%emt 0:00:30]} 32. h4 {[%emt 0:00:25]} h5 {[%emt 0:00:30]} 33. Qb3 {[%emt 0:00:35]} Qa5 {[%emt 0:00:31]} 34. Rxg6+ {[%emt 0:00:29]} Kh7 {[%emt 0:00:30]} 35. Rf6 {[%emt 0:00:39]} Nd6 {[%emt 0:00:26]} 36. Qe6 {[%emt 0:00:20]} 1-0

[Event "AUT-ch U18-Open 2025"]
[Site "Fuerstenfeld"]
[Date "2025.04.16"]
[Round "6.6"]
[White "Hengl, Philip"]
[Black "Hake, Nils"]
[Result "1-0"]
[Annotator "RC"]
[ECO "B20"]
[WhiteElo "2205"]
[BlackElo "2054"]
[PlyCount "57"]
[EventDate "2025.04.12"]
[EventType "swiss"]
[EventCountry "AUT"]
[SourceTitle "playchess.com"]
[Source "ChessBase"]
[SourceQuality "1"]
[TimeControl "5400+30"]

1. e4 {[%emt 0:00:01]} c5 {[%emt 0:00:06]} 2. b3 {[%emt 0:00:05]} g6 {[%emt 0:00:14]} 3. Bb2 {[%emt 0:00:06]} Nf6 {[%emt 0:00:05]} 4. Nc3 {[%emt 0:00:04]} d6 {[%emt 0:00:29]} 5. Nd5 {[%emt 0:02:05]} Bg7 {[%emt 0:00:35]} 6. Nxf6+ {[%emt 0:00:08]} exf6 {[%emt 0:00:24]} 7. Bc4 {[%emt 0:00:11]} O-O {[%emt 0:03:15]} 8. Ne2 {[%emt 0:00:54]} Nc6 {[%emt 0:03:15]} 9. O-O {[%emt 0:01:21]} Be6 {[%emt 0:05:43]} 10. Bd5 {[%emt 0:06:34]} Nb4 {[%emt 0:12:38]} 11. c4 {[%emt 0:04:30]} Bxd5 {[%emt 0:12:07]} 12. exd5 {[%emt 0:00:08]} f5 {[%emt 0:01:23]} 13. Bxg7 {[%emt 0:00:39]} Kxg7 {[%emt 0:00:07]} 14. d4 {[%emt 0:02:15]} b6 {[%emt 0:00:41]} 15. dxc5 {[%emt 0:05:09]} bxc5 {[%emt 0:00:37]} 16. Qd2 {[%emt 0:00:19]} Re8 {[%emt 0:02:34]} 17. Nc3 {[%emt 0:02:19]} Na6 {[%emt 0:02:58]} 18. Nb5 {[%emt 0:06:12]} Nc7 {[%emt 0:03:19]} 19. Qc3+ {[%emt 0:01:36]} f6 {[%emt 0:08:35]} 20. Na3 {[%emt 0:00:29]} Re5 {[%emt 0:03:09]} 21. Nc2 {[%emt 0:01:19]} Qd7 {[%emt 0:01:31]} 22. a3 {[%emt 0:01:00]} Rc8 {[%emt 0:02:10]} 23. Ne1 {[%emt 0:00:59]} Re4 {[%emt 0:02:00]} 24. Nd3 {[%emt 0:01:50]} g5 {[%emt 0:00:59]} 25. Rfe1 {[%emt 0:05:42]} Na8 {[%emt 0:02:15]} 26. f3 {[%emt 0:01:38]} Ree8 {[%emt 0:00:27]} 27. Ra2 {[%emt 0:04:27]} Nb6 {[%emt 0:05:52]} 28. Rae2 {[%emt 0:01:30]} Kf7 {[%emt 0:00:28]} 29. Re6 {[%emt 0:00:42]} 1-0

[Event "AUT-ch U18-Open 2025"]
[Site "Fuerstenfeld"]
[Date "2025.04.16"]
[Round "6.7"]
[White "Mangeng, Lukas"]
[Black "Fitz, Jonathan David"]
[Result "0-1"]
[Annotator "NA RC"]
[ECO "D37"]
[WhiteElo "1688"]
[BlackElo "1918"]
[PlyCount "44"]
[EventDate "2025.04.12"]
[EventType "swiss"]
[EventCountry "AUT"]
[SourceTitle "playchess.com"]
[Source "ChessBase"]
[SourceQuality "1"]
[TimeControl "5400+30"]

1. d4 {[%emt 0:00:02]} Nf6 {[%emt 0:00:09]} 2. c4 {[%emt 0:00:11]} e6 {[%emt 0:00:08]} 3. Nc3 {[%emt 0:00:17]} d5 {[%emt 0:00:11]} 4. e3 {[%emt 0:02:46]} Be7 {[%emt 0:00:33]} 5. Nf3 {[%emt 0:00:15]} O-O {[%emt 0:00:06]} 6. Bd3 {[%emt 0:00:22]} dxc4 {[%emt 0:00:09]} 7. Bxc4 {[%emt 0:00:12]} a6 {[%emt 0:00:04]} 8. O-O {[%emt 0:01:55]} b5 {[%emt 0:03:49]} 9. Bd3 {[%emt 0:00:18]} Bb7 {[%emt 0:00:11]} 10. Bd2 {[%emt 0:02:34]} Nbd7 {[%emt 0:01:14]} 11. a3 {[%emt 0:03:49]} c5 {[%emt 0:00:49]} 12. Qe2 {[%emt 0:03:10]} Qb6 {[%emt 0:05:49]} 13. dxc5 {[%emt 0:01:45]} Nxc5 {[%emt 0:00:17]} 14. Bc2 {[%emt 0:00:29]} Nce4 {[%emt 0:02:31]} 15. Nxe4 {[%emt 0:07:45]} Nxe4 {[%emt 0:00:15]} 16. Bc1 {[%emt 0:00:23]} Rac8 {[%emt 0:05:28]} 17. b4 {[%emt 0:02:35]} Nc3 {[%emt 0:15:55]} 18. Qe1 {[%emt 0:00:09]} Bxf3 {[%emt 0:04:54]} 19. gxf3 {[%emt 0:00:04]} Qc6 {[%emt 0:00:39]} 20. Bb2 {[%emt 0:04:52]} Ne2+ {[%emt 0:12:55]} 21. Qxe2 {[%emt 0:00:35]} Qxc2 {[%emt 0:00:05]} 22. Rfe1 {[%emt 0:07:27]} Qg6+ {[%emt 0:00:14]} 0-1

[Event "AUT-ch U18-Open 2025"]
[Site "Fuerstenfeld"]
[Date "2025.04.16"]
[Round "6.8"]
[White "Pedevilla, Luis"]
[Black "Archan, Elikya"]
[Result "1/2-1/2"]
[Annotator "NA RC"]
[ECO "C11"]
[WhiteElo "1925"]
[BlackElo "2048"]
[PlyCount "114"]
[EventDate "2025.04.12"]
[EventType "swiss"]
[EventCountry "AUT"]
[SourceTitle "playchess.com"]
[Source "ChessBase"]
[SourceQuality "1"]
[TimeControl "5400+30"]

1. e4 {[%emt 0:00:03]} e6 {[%emt 0:00:14]} 2. d4 {[%emt 0:00:07]} d5 {[%emt 0:00:06]} 3. Nc3 {[%emt 0:00:06]} Nf6 {[%emt 0:00:05]} 4. e5 {[%emt 0:00:06]} Nfd7 {[%emt 0:00:05]} 5. Nce2 {[%emt 0:00:08]} c5 {[%emt 0:00:06]} 6. c3 {[%emt 0:00:05]} Nc6 {[%emt 0:00:04]} 7. f4 {[%emt 0:00:13]} Qb6 {[%emt 0:00:06]} 8. Nf3 {[%emt 0:00:09]} f6 {[%emt 0:00:05]} 9. a3 {[%emt 0:02:09]} Be7 {[%emt 0:00:04]} 10. Ng3 {[%emt 0:01:11]} cxd4 {[%emt 0:01:37]} 11. cxd4 {[%emt 0:00:56]} O-O {[%emt 0:05:03]} 12. Be2 {[%emt 0:07:22]} fxe5 {[%emt 0:01:11]} 13. fxe5 {[%emt 0:02:25]} Rxf3 {[%emt 0:08:15]} 14. gxf3 {[%emt 0:03:47]} Nxd4 {[%emt 0:03:54]} 15. f4 {[%emt 0:02:21]} Nb3 {[%emt 0:01:41]} 16. Rb1 {[%emt 0:01:05]} Bc5 {[%emt 0:04:47]} 17. Rf1 {[%emt 0:05:52]} Bd4 {[%emt 0:02:24]} 18. Bd3 {[%emt 0:02:46]} Ndc5 {[%emt 0:03:28]} 19. Bc2 {[%emt 0:06:46]} Qa5+ {[%emt 0:26:43]} 20. Bd2 {[%emt 0:10:56]} Qb5 {[%emt 0:00:16]} 21. Bb4 {[%emt 0:09:54]} Be3 {[%emt 0:03:44]} 22. Bxc5 {[%emt 0:13:45]} Nxc5 {[%emt 0:00:29]} 23. b4 {[%emt 0:00:18]} Nd7 {[%emt 0:03:01]} 24. Rf3 {[%emt 0:11:17]} d4 {[%emt 0:01:40]} 25. Ne4 {[%emt 0:00:44]} Nf8 {[%emt 0:02:04]} 26. a4 {[%emt 0:02:20]} Qc6 {[%emt 0:01:08]} 27. Qd3 {[%emt 0:02:07]} Bd7 {[%emt 0:01:22]} 28. b5 {[%emt 0:00:53]} Qc7 {[%emt 0:01:01]} 29. Nd6 {[%emt 0:01:49]} a6 {[%emt 0:02:52]} 30. b6 {[%emt 0:03:28]} Qd8 {[%emt 0:02:39]} 31. Rxe3 {[%emt 0:05:15]} dxe3 {[%emt 0:00:25]} 32. Qxe3 {[%emt 0:00:02]} Bc6 {[%emt 0:01:06]} 33. Qh3 {[%emt 0:01:20]} a5 {[%emt 0:01:27]} 34. Bb3 {[%emt 0:02:27]} Qe7 {[%emt 0:04:17]} 35. Ke2 {[%emt 0:00:20]} Kh8 {[%emt 0:04:52]} 36. Ra1 {[%emt 0:01:39]} Rd8 {[%emt 0:06:57]} 37. Rd1 {[%emt 0:00:07]} h6 {[%emt 0:06:33]} 38. Nf7+ {[%emt 0:00:37]} Qxf7 {[%emt 0:00:15]} 39. Rxd8 {[%emt 0:00:02]} Qxf4 {[%emt 0:00:41]} 40. Qe3 {[%emt 0:01:28]} Qb4 {[%emt 0:00:57]} 41. Kf1 {[%emt 0:01:05]} Kh7 {[%emt 0:02:19]} 42. Bc2+ {[%emt 0:00:15]} g6 {[%emt 0:00:00]} 43. Qf2 {[%emt 0:00:48]} Qc4+ {[%emt 0:00:31]} 44. Ke1 {[%emt 0:00:49]} Qc3+ {[%emt 0:00:19]} 45. Kf1 {[%emt 0:00:19]} Qc4+ {[%emt 0:00:05]} 46. Rd3 {[%emt 0:00:21]} Nd7 {[%emt 0:01:31]} 47. Qf7+ {[%emt 0:00:51]} Kh8 {[%emt 0:00:02]} 48. Qxg6 {[%emt 0:00:43]} Nc5 {[%emt 0:00:45]} 49. Qxh6+ {[%emt 0:00:40]} Kg8 {[%emt 0:00:00]} 50. Qg6+ {[%emt 0:00:35]} Kh8 {[%emt 0:00:09]} 51. Kg1 {[%emt 0:00:38]} Nxd3 {[%emt 0:00:20]} 52. Bxd3 {[%emt 0:00:01]} Qd4+ {[%emt 0:01:42]} 53. Kf1 {[%emt 0:00:01]} Qf4+ {[%emt 0:00:09]} 54. Kg1 {[%emt 0:01:00]} Qe3+ {[%emt 0:00:22]} 55. Kf1 {[%emt 0:00:01]} Qf3+ {[%emt 0:00:44]} 56. Ke1 {[%emt 0:00:15]} Qe3+ {[%emt 0:00:23]} 57. Kf1 {[%emt 0:00:40]} Qf3+ {[%emt 0:00:05]} 1/2-1/2